[Event "ISR-ch Open 2018"]
[Site "Ma'alot-Tarshih"]
[Date "2018.12.19"]
[Round "8"]
[White "Gleizer, Mark"]
[Black "Gershkowich, David"]
[Result "1-0"]
[ECO "A45"]
[WhiteElo "2186"]
[BlackElo "2193"]
[Annotator "NA"]
[PlyCount "109"]
[EventDate "2018.12.12"]
[EventType "swiss"]
[EventCountry "ISR"]
[SourceTitle "playchess.com"]
[Source "ChessBase"]
[SourceQuality "1"]
[TimeControl "40/5400+30:1800+30"]

1. d4 {[%emt 0:00:00]} Nf6 {[%emt 0:00:00]} 2. c3 {[%emt 0:00:00]} g6 {[%emt 0:00:21]} 3. g3 {[%emt 0:00:01]} Bg7 {[%emt 0:00:51]} 4. Bg2 {[%emt 0:00:07]} d5 {[%emt 0:01:13]} 5. Nd2 {[%emt 0:00:23]} Nbd7 {[%emt 0:01:10]} 6. f4 {[%emt 0:03:12]} c5 {[%emt 0:01:45]} 7. e3 {[%emt 0:00:47]} Qb6 {[%emt 0:01:23]} 8. Nh3 {[%emt 0:03:17]} Qa6 {[%emt 0:06:33]} 9. Nf2 {[%emt 0:03:16]} O-O {[%emt 0:00:58]} 10. b3 {[%emt 0:06:25]} Re8 {[%emt 0:02:19]} 11. Qe2 {[%emt 0:08:51]} Qxe2+ {[%emt 0:14:21]} 12. Kxe2 {[%emt 0:00:13]} b6 {[%emt 0:00:23]} 13. Bb2 {[%emt 0:04:20]} Ba6+ {[%emt 0:01:05]} 14. Kd1 {[%emt 0:00:56]} e6 {[%emt 0:02:55]} 15. Rc1 {[%emt 0:04:14]} Rad8 {[%emt 0:04:51]} 16. Kc2 {[%emt 0:02:12]} Rc8 {[%emt 0:03:31]} 17. Kb1 {[%emt 0:01:14]} Red8 {[%emt 0:02:28]} 18. g4 {[%emt 0:03:31]} Nb8 {[%emt 0:01:23]} 19. g5 {[%emt 0:01:18]} Ne8 {[%emt 0:00:50]} 20. h4 {[%emt 0:01:01]} Be2 {[%emt 0:02:53]} 21. Rce1 {[%emt 0:02:19]} Bh5 {[%emt 0:00:33]} 22. Nf1 {[%emt 0:00:28]} f5 {[%emt 0:05:13]} (22... cxd4 $11 23. cxd4 (23. exd4 Bf8 $11) 23... Bf8) 23. Ng3 {[%emt 0:02:00]} Bf8 {[%emt 0:01:10]} 24. Nxh5 {[%emt 0:05:54]} gxh5 {[%emt 0:00:02]} 25. Bf3 {[%emt 0:03:12]} Ng7 {[%emt 0:00:09]} 26. dxc5 {[%emt 0:03:10]} Bxc5 {[%emt 0:03:16]} 27. Re2 {[%emt 0:03:30]} a5 {[%emt 0:02:55]} 28. a4 {[%emt 0:03:54]} Nc6 {[%emt 0:11:05]} 29. Rd1 {[%emt 0:04:26]} Ne7 {[%emt 0:01:50]} 30. Nh1 {[%emt 0:01:14]} Ng6 {[%emt 0:00:51]} 31. Ng3 {[%emt 0:01:21]} Nxh4 {[%emt 0:00:30]} 32. Bxh5 $16 {[%emt 0:00:32]} Ng6 {[%emt 0:02:22]} 33. Bf3 {[%emt 0:01:45]} Rb8 {[%emt 0:08:33]} 34. Ka2 {[%emt 0:02:06]} Nh4 {[%emt 0:01:55]} 35. Bh1 {[%emt 0:00:20]} Ng6 {[%emt 0:01:24]} 36. Rd3 {[%emt 0:01:54]} Nf8 {[%emt 0:03:12]} 37. Red2 {[%emt 0:01:25]} Be7 {[%emt 0:02:40]} 38. Ne2 {[%emt 0:04:13]} Nd7 {[%emt 0:02:00]} 39. Rd1 {[%emt 0:05:08]} Nc5 {[%emt 0:00:34]} 40. R3d2 {[%emt 0:01:09]} Kf7 {[%emt 0:02:57]} 41. Nd4 {[%emt 0:30:50]} Rbc8 {[%emt 0:30:48]} 42. Rh2 {[%emt 0:01:38]} Rh8 {[%emt 0:02:08]} 43. Nf3 {[%emt 0:01:20]} Rcg8 {[%emt 0:03:06]} 44. Ne5+ {[%emt 0:02:23]} Ke8 {[%emt 0:00:31]} 45. c4 {[%emt 0:00:40]} Ne4 {[%emt 0:00:00]} 46. cxd5 {[%emt 0:00:00]} exd5 {[%emt 0:00:00]} 47. Rxd5 {[%emt 0:00:00]} Bc5 {[%emt 0:00:00]} 48. Bxe4 {[%emt 0:00:00]} fxe4 {[%emt 0:00:00]} 49. Nd7 {[%emt 0:00:00]} Bxe3 {[%emt 0:00:00]} 50. Nf6+ {[%emt 0:00:00]} Kf8 {[%emt 0:00:00]} 51. Nxg8 {[%emt 0:00:00]} Rxg8 {[%emt 0:00:00]} 52. Rxh7 {[%emt 0:00:00]} Ne6 {[%emt 0:00:00]} 53. Rf5+ {[%emt 0:00:00]} Ke8 {[%emt 0:00:00]} 54. Re5 {[%emt 0:00:00]} Rg6 {[%emt 0:00:00]} 55. f5 {[%emt 0:00:00]} 1-0